bitfinex-derivatives/quotes_BTCF0:USTF0_20251011
["timestamp","ask_amount","ask_price","bid_price","bid_amount"]
[1760217685046,0.94865978,110420.0,110410.0,0.01625]
[1760217685251,0.0904794,110410.0,110400.0,0.01625]
[1760217685445,0.4512794,110410.0,110400.0,0.0432]
[1760217685841,0.4512794,110410.0,110400.0,0.71517509]
[1760217686336,0.0904794,110410.0,110400.0,0.71517509]
[1760217686543,0.07407889,110420.0,110410.0,0.1336794]
[1760217686843,0.4512652,110430.0,110420.0,0.0432]
[1760217687042,0.4512652,110430.0,110420.0,0.71515869]
[1760217687043,0.3608,110430.0,110420.0,0.71515869]
[1760217687248,0.3608,110430.0,110420.0,1.11515869]
[1760217687545,0.3608,110440.0,110430.0,0.133663]
[1760217687747,0.3608,110440.0,110430.0,0.71515049]
[1760217687948,0.0714606,110440.0,110430.0,1.11515049]
[1760217688145,0.3608,110460.0,110450.0,0.1066966]
[1760217688448,0.3608,110460.0,110450.0,0.71513409]
[1760217688636,0.3608,110460.0,110450.0,0.1336466]
[1760217688844,0.3608,110460.0,110450.0,0.72390844]
[1760217689744,0.3608,110480.0,110470.0,0.1336302]
[1760217689944,0.3608,110480.0,110470.0,0.62468749]
[1760217690345,0.4512221,110480.0,110470.0,0.62468749]
[1760217690950,0.3618,110480.0,110470.0,0.71511769]
[1760217691147,0.3628,110480.0,110470.0,0.71511769]
[1760217691351,0.002,110480.0,110470.0,1.47591769]
[1760217691648,0.3608,110500.0,110490.0,0.1324439]
[1760217691848,0.3608,110500.0,110490.0,0.71393139]
[1760217692045,0.4511977,110510.0,110490.0,0.71393139]
[1760217692244,0.4511977,110510.0,110500.0,0.04203]
[1760217692440,0.4511941,110520.0,110510.0,0.01519]
[1760217692640,0.52449014,110520.0,110510.0,0.04203]
[1760217693753,0.52649014,110520.0,110510.0,0.04203]
[1760217693946,0.53508859,110520.0,110510.0,0.04203]
[1760217694348,0.43609604,110520.0,110510.0,0.62351749]
[1760217694747,0.52648534,110520.0,110510.0,0.62351749]
[1760217694942,0.3628,110520.0,110510.0,0.71391499]
[1760217695148,0.002,110520.0,110510.0,0.71391499]
[1760217695543,0.002,110520.0,110510.0,1.47471499]
[1760217696851,0.52171817,110550.0,110540.0,0.04203]
[1760217697656,0.07055097,110550.0,110540.0,0.132403]
[1760217697856,0.45971566,110560.0,110550.0,0.01519]
[1760217698051,0.46110176,110560.0,110550.0,0.04203]
[1760217698547,0.7621861,110560.0,110550.0,0.04203]
[1760217698750,0.4525427,110560.0,110550.0,0.04203]
[1760217698953,0.0917427,110560.0,110550.0,0.04203]
[1760217699152,0.4525427,110560.0,110550.0,0.04203]
[1760217699558,0.52502438,110560.0,110550.0,0.04203]
[1760217699748,0.53457703,110560.0,110550.0,0.04203]
[1760217699948,0.53457703,110560.0,110550.0,0.01519]
[1760217700553,0.53357703,110560.0,110550.0,0.01519]
[1760217702060,0.53357703,110560.0,110550.0,0.03985]
[1760217702260,0.52502438,110560.0,110550.0,0.03985]
[1760217702459,0.52502438,110560.0,110550.0,0.01519]
[1760217702757,0.52502438,110560.0,110550.0,0.03985]
[1760217703855,0.16422438,110560.0,110550.0,0.03985]
[1760217704062,0.43466778,110560.0,110550.0,0.03985]
[1760217704352,0.52502448,110560.0,110550.0,0.03985]
[1760217706162,0.52502448,110560.0,110550.0,0.01519]
[1760217706662,0.92502448,110560.0,110550.0,0.01519]
[1760217706863,0.92502448,110560.0,110550.0,0.03985]
[1760217707751,0.52502448,110560.0,110550.0,0.55791759]
[1760217707957,0.52502448,110560.0,110550.0,0.01519]
[1760217708155,0.92502448,110560.0,110550.0,0.01519]
[1760217708860,0.0903648,110550.0,110540.0,0.01519]
[1760217709163,0.4525509,110550.0,110540.0,0.01519]
[1760217709665,0.4525509,110550.0,110540.0,0.03985]
[1760217709857,0.4525509,110550.0,110540.0,0.23519]
[1760217710062,0.4535509,110550.0,110540.0,0.23519]
[1760217710563,0.4535509,110550.0,110540.0,0.25985]
[1760217710761,0.4535509,110550.0,110540.0,0.23519]
[1760217711160,0.8535509,110550.0,110540.0,0.23519]
[1760217711760,0.4927509,110550.0,110540.0,0.23519]
[1760217711961,0.8535509,110550.0,110540.0,0.23519]
[1760217715268,0.4535509,110550.0,110540.0,0.25985]
[1760217716664,0.4535509,110550.0,110540.0,0.23519]
[1760217716864,0.8535509,110550.0,110540.0,0.23519]
[1760217717168,0.87654912,110550.0,110540.0,0.23519]
[1760217719572,0.47654912,110550.0,110540.0,0.25985]
[1760217719961,0.47654912,110550.0,110540.0,0.23519]
[1760217720163,0.87654912,110550.0,110540.0,0.22]
[1760217720369,0.97646761,110550.0,110540.0,0.23583]
[1760217720666,0.87654912,110550.0,110540.0,0.23583]
[1760217721774,0.87654912,110550.0,110540.0,0.26049]
[1760217722271,0.87654912,110550.0,110540.0,0.23583]
[1760217723377,0.47654912,110550.0,110540.0,0.2627]
[1760217724664,0.47654912,110550.0,110540.0,1.18076759]
[1760217724871,0.47654912,110550.0,110540.0,0.23583]
[1760217727276,0.0903812,110530.0,110520.0,0.34519]
[1760217727573,0.47417942,110530.0,110520.0,0.13519]
[1760217727772,0.50622299,110530.0,110520.0,0.13519]
[1760217728077,1.28313642,110530.0,110520.0,0.13519]
[1760217728269,0.91696899,110530.0,110520.0,0.13519]
[1760217728472,0.86981199,110530.0,110520.0,0.13519]
[1760217728669,0.77943079,110530.0,110520.0,0.16206]
[1760217728976,0.38618432,110530.0,110520.0,1.17051689]
[1760217729379,0.48542029,110530.0,110520.0,0.13519]
[1760217729878,0.91786676,110530.0,110520.0,0.13519]
[1760217730079,0.96602376,110530.0,110520.0,0.13519]
[1760217730279,0.91786676,110530.0,110520.0,0.13519]
[1760217730876,1.01778525,110530.0,110520.0,0.13519]
[1760217731474,0.47656552,110530.0,110520.0,0.16206]
[1760217731770,0.47656552,110530.0,110520.0,0.56206]
[1760217732379,0.47656552,110530.0,110520.0,0.6524494]
[1760217732879,0.47656552,110530.0,110520.0,0.16206]
[1760217733077,0.47656552,110530.0,110520.0,0.13519]
[1760217733477,0.47656552,110530.0,110520.0,0.16206]
[1760217734478,0.47656552,110530.0,110520.0,0.6524494]
[1760217735175,0.38618432,110530.0,110520.0,0.6524494]
[1760217737380,0.02538432,110530.0,110520.0,0.6524494]
[1760217737786,0.02538432,110530.0,110520.0,1.0132494]
[1760217737977,0.11576552,110530.0,110520.0,0.6524494]
[1760217738675,0.47656552,110530.0,110520.0,0.6524494]
[1760217738881,0.11576552,110530.0,110520.0,0.6524494]
[1760217739179,0.47656552,110530.0,110520.0,0.6524494]
[1760217739384,0.11576552,110530.0,110520.0,0.6524494]
[1760217739683,0.02538432,110530.0,110520.0,1.17051699]
[1760217740083,0.02538432,110530.0,110520.0,1.53131699]
[1760217740587,0.0023861,110530.0,110520.0,1.53131699]
[1760217742682,0.52364218,110560.0,110550.0,0.04261]
[1760217742881,0.54665097,110560.0,110550.0,0.4029748]
[1760217743281,0.54665097,110560.0,110550.0,0.31261]
[1760217746285,0.3608,110560.0,110550.0,1.32104239]
[1760217746482,0.12278417,110590.0,110560.0,0.1329667]
[1760217746483,0.3608,110580.0,110560.0,0.1329667]
[1760217746688,0.02299128,110580.0,110570.0,0.65102609]
[1760217746885,0.3608,110590.0,110580.0,0.1329503]
[1760217747188,0.3608,110590.0,110580.0,0.91101789]
[1760217747576,0.03244647,110620.0,110600.0,0.01574]
[1760217747577,0.3608,110620.0,110600.0,0.01574]
[1760217747780,0.3608,110620.0,110610.0,0.56067759]
[1760217747985,0.08060347,110650.0,110630.0,0.1329095]
[1760217747986,0.0087829,110640.0,110630.0,0.1329095]
[1760217748184,0.3608,110660.0,110650.0,0.01574]
[1760217748392,0.090275,110660.0,110650.0,0.30261]
[1760217748687,0.3608,110670.0,110660.0,0.01574]
[1760217748890,0.4510669,110670.0,110660.0,0.27574]
[1760217749882,0.45977834,110670.0,110660.0,0.27574]
[1760217750086,0.45977834,110670.0,110660.0,0.30261]
[1760217750289,0.16955391,110670.0,110660.0,0.30261]
[1760217750583,0.07057557,110670.0,110660.0,0.30261]
[1760217750784,0.4510523,110690.0,110670.0,0.04261]
[1760217750988,0.4510523,110690.0,110680.0,0.04261]
[1760217751182,0.4510523,110690.0,110680.0,0.29261]
[1760217751183,0.45963652,110690.0,110680.0,0.29261]
[1760217751377,0.00858422,110690.0,110680.0,0.29261]
[1760217751583,0.45993015,110700.0,110690.0,0.01574]
[1760217751782,0.45993015,110700.0,110690.0,0.26574]
[1760217752186,0.45993015,110700.0,110690.0,0.29224]
[1760217752488,0.5336197,110700.0,110690.0,0.26574]
[1760217753188,0.1728197,110700.0,110690.0,0.29224]
[1760217753389,0.16393485,110700.0,110690.0,0.29224]
[1760217754290,0.0902424,110700.0,110690.0,0.65304]
[1760217754489,0.8276309,110720.0,110710.0,0.01571]
[1760217754679,0.8276309,110720.0,110710.0,0.25571]
[1760217755286,0.4668309,110720.0,110710.0,0.25571]
[1760217755485,0.09875051,110720.0,110710.0,0.28221]
[1760217755690,0.00851961,110720.0,110710.0,0.64301]
[1760217755987,0.3608,110740.0,110730.0,0.01571]
[1760217755988,0.090215,110740.0,110730.0,0.01571]
[1760217756183,0.451015,110740.0,110730.0,0.24571]
[1760217756388,0.52205098,110740.0,110730.0,0.24571]
[1760217756887,0.5307708,110740.0,110730.0,0.24571]
[1760217757490,0.5307708,110740.0,110730.0,0.27221]
[1760217757692,0.5307708,110740.0,110730.0,0.24571]
[1760217758696,0.9307708,110740.0,110730.0,0.24571]
[1760217759286,1.03068929,110740.0,110730.0,0.24571]
[1760217759487,1.03068929,110740.0,110730.0,0.23]
[1760217759686,1.03068929,110740.0,110730.0,0.13]
[1760217759889,0.63068929,110740.0,110730.0,0.17221]
[1760217760092,0.43075598,110740.0,110730.0,0.17221]
[1760217760292,0.07103598,110740.0,110730.0,0.57221]
[1760217760498,0.36940194,110750.0,110740.0,0.01571]
[1760217760690,0.3608,110750.0,110740.0,0.27571]
[1760217760896,0.4509858,110770.0,110760.0,0.01623]
[1760217761094,0.4509858,110770.0,110760.0,0.26]
[1760217761692,0.45960514,110770.0,110760.0,0.26]
[1760217761998,0.6331161,110770.0,110760.0,0.26]
[1760217762392,0.5429303,110770.0,110760.0,0.27623]
[1760217762594,0.44301181,110770.0,110760.0,0.27623]
[1760217763194,0.53319721,110770.0,110760.0,0.26]
[1760217763498,0.53319721,110770.0,110760.0,0.27623]
[1760217763695,0.44301181,110770.0,110760.0,0.30172]
[1760217763999,0.3608,110790.0,110780.0,0.01623]
[1760217764192,0.3608,110790.0,110780.0,0.27623]
[1760217764392,0.3608,110790.0,110780.0,0.30172]
[1760217764593,0.74606118,110800.0,110790.0,0.01623]
[1760217764793,0.3608,110800.0,110790.0,0.25623]
[1760217764997,0.3608,110820.0,110800.0,0.01623]
[1760217765191,0.3608,110820.0,110810.0,0.01623]
[1760217765396,0.3608,110820.0,110810.0,0.23623]
[1760217765792,0.4509447,110820.0,110810.0,0.23623]
[1760217766398,0.4509447,110820.0,110810.0,0.22]
[1760217766593,1.42841792,110820.0,110810.0,0.22]
[1760217766796,1.52833641,110820.0,110810.0,0.22]
[1760217766990,1.53719845,110820.0,110810.0,0.22]
[1760217767198,1.52619845,110820.0,110810.0,0.22]
[1760217767397,1.12619845,110820.0,110810.0,0.22]
[1760217767797,0.54872523,110820.0,110810.0,0.22]
[1760217768001,1.12619845,110820.0,110810.0,0.22]
[1760217768199,1.02627996,110820.0,110810.0,0.22]
[1760217768398,0.44880674,110820.0,110810.0,0.23623]
[1760217768704,0.00886204,110820.0,110810.0,0.23623]
[1760217769002,0.3608,110830.0,110820.0,0.1063747]
[1760217769204,0.3608,110840.0,110820.0,0.1063747]
[1760217769205,0.3608,110840.0,110830.0,0.01623]
[1760217769497,0.3608,110840.0,110830.0,0.24623]
[1760217769697,0.4509284,110840.0,110830.0,0.24623]
[1760217770100,0.8509284,110840.0,110830.0,0.24623]
[1760217770300,0.4509284,110840.0,110830.0,0.24623]
[1760217770598,0.4509227,110850.0,110840.0,0.01623]
[1760217770801,0.3608,110850.0,110840.0,0.25623]
[1760217771197,2.45647414,110850.0,110800.0,0.01623]
[1760217771398,1.02842602,110810.0,110800.0,0.08]
[1760217771701,0.090161,110800.0,110790.0,0.01623]
[1760217771899,0.450961,110800.0,110790.0,0.22623]
[1760217772298,0.3608,110800.0,110790.0,0.22623]
[1760217772501,0.450961,110800.0,110790.0,0.62623]
[1760217773199,0.090161,110800.0,110790.0,0.62623]
[1760217773394,0.4509539,110810.0,110800.0,0.01623]
[1760217773600,0.4509539,110810.0,110800.0,0.25623]
[1760217773998,1.02842712,110810.0,110800.0,0.24]
[1760217774309,0.95087239,110810.0,110800.0,0.24]
[1760217774504,1.52834561,110810.0,110800.0,0.1771126]
[1760217774807,1.52834561,110810.0,110800.0,0.1364826]
[1760217775398,0.95087239,110810.0,110800.0,0.1364826]
[1760217775608,1.52834561,110810.0,110800.0,0.1364826]
[1760217776005,1.60048348,110810.0,110800.0,0.1364826]
[1760217776605,1.02301026,110810.0,110800.0,0.1364826]
[1760217776808,1.60048348,110810.0,110800.0,0.0658689]
[1760217777513,1.02301026,110810.0,110800.0,0.0658689]
[1760217777707,1.60048348,110810.0,110800.0,0.0658689]
[1760217777907,0.0901691,110790.0,110780.0,0.04179774]
[1760217778107,0.0901691,110790.0,110780.0,0.27179774]
[1760217778412,0.0901691,110790.0,110780.0,1.24927096]
[1760217778810,0.0901691,110790.0,110780.0,1.61007096]
[1760217779008,0.3608,110810.0,110800.0,0.01623]
[1760217779214,0.3608,110810.0,110800.0,0.24623]
[1760217779215,0.0901528,110810.0,110800.0,0.24623]
[1760217779408,0.3608,110820.0,110810.0,0.01623]
[1760217779606,0.3608,110820.0,110810.0,0.25623]
[1760217779607,0.4509447,110820.0,110810.0,0.25623]
[1760217779812,1.42841792,110820.0,110810.0,0.25623]
[1760217780004,1.52833641,110820.0,110800.0,0.01623]
[1760217780207,0.4509528,110810.0,110800.0,0.10623]
[1760217780408,0.4739721,110810.0,110800.0,0.10623]
[1760217780609,1.05146505,110810.0,110800.0,0.10623]
[1760217780913,1.4512048,110810.0,110800.0,0.0051905]
[1760217781115,0.97365007,110810.0,110800.0,0.0214205]
[1760217781314,1.62349192,110810.0,110800.0,0.0214205]
[1760217781815,0.0901935,110760.0,110750.0,0.0156]
[1760217782011,0.0901935,110760.0,110750.0,0.02932569]
[1760217782012,1.0512743,110760.0,110750.0,0.02932569]
[1760217782313,0.0902017,110750.0,110740.0,0.0156]
[1760217782510,0.47380928,110750.0,110740.0,0.2356]
[1760217782704,1.02847492,110750.0,110740.0,0.2356]
[1760217782909,1.05136722,110750.0,110740.0,0.2356]
[1760217783105,1.52177619,110750.0,110740.0,0.22]
[1760217783311,1.52177619,110750.0,110740.0,0.2089322]
[1760217783510,0.0902098,110740.0,110730.0,0.0003]
[1760217783707,0.0902261,110720.0,110700.0,0.0156]
[1760217783916,1.38930752,110710.0,110700.0,0.1856]
[1760217784112,0.0902506,110690.0,110680.0,0.0156]
[1760217784312,1.41218802,110690.0,110680.0,0.0947789]
[1760217784715,1.81218802,110690.0,110680.0,0.0947789]
[1760217785021,0.0902587,110680.0,110670.0,0.01566606]
[1760217785220,1.05137934,110680.0,110670.0,0.18566606]
[1760217785420,0.8510587,110680.0,110670.0,0.17006606]
[1760217785621,1.42860966,110680.0,110670.0,0.17006606]
[1760217785819,1.05143199,110680.0,110670.0,0.18566606]
[1760217786116,1.15135048,110680.0,110670.0,0.18566606]
[1760217786310,1.55135048,110680.0,110670.0,0.17006606]
[1760217786720,1.15135048,110680.0,110670.0,0.18566606]
[1760217787123,1.12852815,110680.0,110670.0,0.18566606]
[1760217787429,1.02860966,110680.0,110670.0,0.18566606]
[1760217787726,0.36087774,110680.0,110670.0,0.58566606]
[1760217788226,0.00107774,110680.0,110670.0,0.67593296]
[1760217788422,0.00107774,110680.0,110670.0,1.25340618]
[1760217788927,0.3608,110700.0,110690.0,0.0156]
[1760217789220,0.4510358,110710.0,110700.0,0.0156]
[1760217789422,0.4510358,110710.0,110700.0,0.2756]
[1760217789423,1.02850902,110710.0,110700.0,0.2756]
[1760217789623,1.42850902,110710.0,110700.0,0.0456]
[1760217789828,0.0902424,110700.0,110690.0,0.0156]
[1760217790027,0.0902424,110700.0,110690.0,0.2656]
[1760217790028,0.4510424,110700.0,110690.0,0.2656]
[1760217790225,0.3608,110710.0,110700.0,0.0156]
[1760217790429,0.3608,110710.0,110700.0,0.2556]
[1760217790820,0.3608,110730.0,110720.0,0.0156]
[1760217791021,0.3608,110730.0,110720.0,0.2756]
[1760217791326,0.451018,110730.0,110720.0,0.2756]
[1760217791823,0.3608,110730.0,110720.0,0.6756]
[1760217792022,0.451018,110730.0,110720.0,0.2756]
[1760217792425,0.452018,110730.0,110720.0,0.2756]
[1760217792622,0.55193649,110730.0,110720.0,0.2756]
[1760217792824,0.452018,110730.0,110720.0,0.2756]
[1760217794627,0.451018,110730.0,110720.0,0.2756]
[1760217795229,0.451018,110730.0,110720.0,0.6756]
[1760217795530,0.452018,110730.0,110720.0,0.6756]
[1760217795731,0.452018,110730.0,110720.0,0.2756]
[1760217795923,1.42949122,110730.0,110720.0,0.0156]
[1760217796124,0.0902261,110720.0,110710.0,0.0156]
[1760217796331,0.0902424,110700.0,110690.0,0.0156]
[1760217796529,1.02851562,110700.0,110690.0,0.2156]
[1760217796833,1.42851562,110700.0,110690.0,0.2]
[1760217797030,0.8510424,110700.0,110690.0,0.2156]
[1760217797230,1.49986613,110700.0,110690.0,0.2156]
[1760217797443,1.59978462,110700.0,110690.0,0.2156]
[1760217798139,1.0223114,110700.0,110690.0,0.2156]
[1760217798338,0.55096089,110700.0,110690.0,0.2156]
[1760217798534,0.4520424,110700.0,110690.0,0.2156]
[1760217799131,1.42951562,110700.0,110690.0,0.2156]
[1760217799931,0.8520424,110700.0,110690.0,0.2156]
[1760217800638,0.4520424,110700.0,110690.0,0.2156]
[1760217800937,1.42951562,110700.0,110690.0,0.2156]
[1760217801142,1.86102352,110700.0,110690.0,0.2156]
[1760217801346,0.0902506,110690.0,110670.0,0.01566606]
[1760217801542,1.38933192,110680.0,110670.0,0.04566606]
[1760217802345,0.3608,110690.0,110670.0,0.67566606]
[1760217802536,0.3618,110700.0,110680.0,0.59307322]
[1760217802740,0.3618,110700.0,110690.0,0.0156]
[1760217803044,0.3618,110700.0,110690.0,0.2756]
[1760217803248,1.42951562,110700.0,110690.0,0.2756]
[1760217803540,0.0902506,110690.0,110680.0,0.0156]
[1760217803743,0.4510506,110690.0,110680.0,0.0756]
[1760217803942,1.42852382,110690.0,110680.0,0.0756]
[1760217804246,0.0902587,110680.0,110670.0,6.606e-05]
[1760217804443,1.05134227,110680.0,110670.0,6.606e-05]
[1760217805344,1.15126076,110680.0,110670.0,6.606e-05]
[1760217805540,0.57378754,110680.0,110670.0,6.606e-05]
[1760217805745,0.57378754,110680.0,110670.0,0.25566606]
[1760217805746,1.15126076,110680.0,110670.0,0.25566606]
[1760217806346,1.52126076,110680.0,110670.0,0.03006606]
[1760217806552,1.52126076,110680.0,110670.0,6.606e-05]
[1760217806843,0.090275,110660.0,110650.0,0.0156]
[1760217807049,1.02854822,110660.0,110650.0,0.0656]
[1760217807253,1.78934822,110660.0,110650.0,0.05]
[1760217807545,1.78934822,110660.0,110640.0,0.0156]
[1760217807546,0.0902832,110650.0,110640.0,0.0156]
[1760217807848,0.45114926,110650.0,110640.0,0.1456]
[1760217808250,0.47401184,110650.0,110640.0,0.1456]
[1760217808450,0.36086606,110650.0,110640.0,0.1456]
[1760217808744,0.45114926,110650.0,110640.0,0.5456]
[1760217809148,0.44914926,110650.0,110640.0,0.5456]
[1760217809349,0.47203845,110650.0,110640.0,0.5456]
[1760217809544,0.47203845,110650.0,110640.0,0.1456]
[1760217809752,0.57195694,110650.0,110640.0,0.1456]
[1760217810250,1.54943016,110650.0,110640.0,0.13]
[1760217810647,0.0902914,110640.0,110630.0,0.0156]
[1760217810852,0.38368919,110640.0,110630.0,0.2656]
[1760217811043,0.02288919,110640.0,110630.0,0.6656]
[1760217811250,0.02288919,110640.0,110630.0,1.0264]
[1760217811445,0.52331729,110650.0,110640.0,0.0156]
[1760217811446,0.54656645,110650.0,110640.0,0.0156]
[1760217811746,1.13260299,110650.0,110640.0,0.15]
[1760217811952,0.0902914,110640.0,110630.0,0.0156]
[1760217812253,1.05181462,110640.0,110630.0,0.1556]
[1760217812457,0.4743414,110640.0,110630.0,0.1556]
[1760217812649,0.38405,110640.0,110630.0,0.1556]
[1760217812950,0.4743414,110640.0,110630.0,0.1556]
[1760217813146,0.4753414,110640.0,110630.0,0.5556]
[1760217813758,0.4753414,110640.0,110630.0,0.1556]
[1760217813950,0.4743414,110640.0,110630.0,0.1556]
[1760217814145,0.4753414,110640.0,110630.0,0.1556]
[1760217814557,0.02425,110640.0,110630.0,1.49387322]
[1760217814751,0.001,110640.0,110630.0,1.13307322]
[1760217814952,0.4520914,110640.0,110630.0,0.1556]
[1760217815351,0.001,110640.0,110630.0,0.1556]
[1760217815552,0.3618,110640.0,110630.0,0.1556]
[1760217815854,0.3618,110640.0,110630.0,0.5556]
[1760217816456,0.3608,110640.0,110630.0,0.5556]
[1760217816656,0.4510914,110640.0,110630.0,0.1556]
[1760217816860,1.12848311,110640.0,110630.0,0.1556]
[1760217817154,0.57425089,110640.0,110630.0,0.1556]
[1760217818863,0.57525089,110640.0,110630.0,0.1556]
[1760217819154,0.57525089,110640.0,110620.0,0.0156]
[1760217819155,0.0902995,110630.0,110620.0,0.0156]
[1760217819354,1.05181372,110630.0,110620.0,0.1156]
[1760217819757,1.45181372,110630.0,110620.0,0.1156]
[1760217819952,1.45181372,110630.0,110620.0,0.0156]
[1760217820355,1.55173221,110630.0,110620.0,0.0156]
[1760217820556,1.55273221,110630.0,110620.0,0.0156]
[1760217821462,1.55273221,110630.0,110620.0,0.1256]
[1760217821962,0.0903077,110620.0,110610.0,0.0156]
[1760217822163,1.05188798,110620.0,110610.0,0.0756]
[1760217822862,1.05188798,110620.0,110610.0,0.0156]
[1760217823058,1.15180647,110620.0,110610.0,0.0156]
[1760217823756,1.55180647,110620.0,110610.0,0.0156]
[1760217824059,0.0903159,110610.0,110600.0,0.01618]
[1760217824354,1.05183012,110610.0,110600.0,0.09618]
[1760217824754,0.4743569,110610.0,110600.0,0.09618]
[1760217824951,1.05183012,110610.0,110600.0,0.09618]
[1760217825161,1.15174861,110610.0,110600.0,0.09618]
[1760217825357,0.57427539,110610.0,110600.0,0.09618]
[1760217825662,0.384041,110610.0,110600.0,0.52295]
[1760217825860,0.023241,110610.0,110600.0,0.783274]
[1760217826060,0.023241,110610.0,110600.0,1.144074]
[1760217826357,0.36086606,110620.0,110610.0,0.01581]
[1760217826358,6.606e-05,110620.0,110610.0,0.01581]
[1760217826558,6.606e-05,110620.0,110610.0,1.63467083]
[1760217826761,6.606e-05,110620.0,110610.0,1.1169258]
[1760217827162,6.606e-05,110620.0,110610.0,1.63467083]
[1760217828655,6.606e-05,110620.0,110610.0,0.62661]
[1760217828863,0.09037376,110620.0,110610.0,0.62661]
[1760217829062,0.11364623,110620.0,110610.0,0.62661]
[1760217829864,0.47444623,110620.0,110610.0,0.26581]
[1760217830063,0.38413853,110620.0,110610.0,0.66581]
[1760217830261,0.02333853,110620.0,110610.0,0.66581]
[1760217830471,0.11364623,110620.0,110610.0,0.66581]
[1760217830762,6.606e-05,110620.0,110610.0,1.63467083]
[1760217831360,0.5556926,110650.0,110640.0,0.01581]
[1760217831560,0.5556926,110650.0,110640.0,0.26581]
[1760217831763,0.54654334,110650.0,110640.0,0.26581]
[1760217832164,0.47438061,110650.0,110640.0,0.26581]
[1760217832861,0.11358061,110650.0,110640.0,0.26581]
[1760217833061,0.02329721,110650.0,110640.0,0.3561014]
[1760217833462,0.02329721,110650.0,110640.0,0.7169014]
[1760217833663,0.54494691,110650.0,110640.0,0.26581]
[1760217833965,0.47438041,110650.0,110640.0,0.26581]
[1760217834568,0.87438041,110650.0,110640.0,0.15581]
[1760217834865,0.90682688,110650.0,110640.0,0.15581]
[1760217835066,0.47438041,110650.0,110640.0,0.15581]
[1760217835264,0.02329721,110650.0,110640.0,0.15581]
[1760217835867,0.11358041,110650.0,110640.0,0.15581]
[1760217836063,0.02429721,110650.0,110640.0,0.15581]
[1760217836862,0.02329721,110650.0,110640.0,0.15581]
[1760217837264,0.18623424,110650.0,110640.0,0.15581]
[1760217837564,0.11358041,110650.0,110640.0,0.15581]
[1760217838164,0.02329721,110650.0,110640.0,0.15581]
[1760217838368,0.38409721,110650.0,110640.0,0.15581]
[1760217839070,0.02429721,110650.0,110640.0,0.15581]
[1760217839265,0.02429721,110650.0,110640.0,0.6069014]
[1760217839459,0.02429721,110650.0,110640.0,0.51661]
[1760217839877,0.02429721,110650.0,110640.0,0.54338]
[1760217840364,0.02329721,110650.0,110640.0,1.55141643]
[1760217840569,0.02329721,110650.0,110640.0,1.46112503]
[1760217840765,0.02329721,110650.0,110640.0,0.94338]
[1760217840971,0.02329721,110650.0,110640.0,0.54338]
[1760217841268,0.02217721,110650.0,110640.0,0.58258]
[1760217841471,0.39324647,110690.0,110670.0,0.01581]
[1760217841768,0.10384738,110700.0,110690.0,0.01555]
[1760217842068,0.40201095,110710.0,110700.0,0.01555]
[1760217842268,0.45989269,110710.0,110700.0,0.12555]
[1760217842573,0.53111396,110710.0,110700.0,0.12555]
[1760217843166,0.0902424,110700.0,110690.0,0.01555]
[1760217843368,0.88339496,110700.0,110690.0,0.18555]
[1760217843670,0.98331345,110700.0,110690.0,0.18555]
[1760217843859,0.46071849,110700.0,110690.0,0.18555]
[1760217844668,1.37846352,110700.0,110690.0,0.17]
[1760217844865,0.0902506,110690.0,110680.0,0.01581]
[1760217845065,0.0902506,110690.0,110680.0,0.18581]
[1760217845066,0.96879563,110690.0,110680.0,0.18581]
[1760217845364,0.87854503,110690.0,110680.0,0.18581]
[1760217845762,0.3608,110690.0,110680.0,0.18581]
[1760217846364,0.3618,110690.0,110680.0,0.18581]
[1760217846963,0.001,110690.0,110680.0,0.54661]
[1760217847866,0.001,110690.0,110680.0,0.94661]
[1760217848167,0.44087966,110710.0,110680.0,1.46435503]
[1760217848474,0.07122127,110710.0,110700.0,0.01555]
[1760217848766,0.3608,110720.0,110710.0,0.01555]
[1760217849071,0.3608,110730.0,110720.0,0.01555]
[1760217849072,0.43371166,110730.0,110720.0,0.01555]
[1760217849275,0.07291166,110730.0,110720.0,0.23555]
[1760217849471,0.3608,110740.0,110720.0,0.23555]
[1760217849667,0.3608,110740.0,110730.0,0.01555]
[1760217849968,0.3608,110740.0,110730.0,0.24555]
[1760217850273,0.3608,110750.0,110740.0,0.01555]
[1760217850274,0.36980381,110750.0,110740.0,0.01555]
[1760217850473,0.36980381,110750.0,110740.0,0.16555]
[1760217851267,0.00900381,110750.0,110740.0,0.16555]
[1760217851472,0.3608,110760.0,110750.0,0.01555]
[1760217851673,0.3608,110760.0,110750.0,0.24555]
[1760217852268,0.8509936,110760.0,110750.0,0.23]
[1760217852467,1.36873863,110760.0,110750.0,0.01555]
[1760217852674,0.8509936,110760.0,110750.0,0.01555]
[1760217852979,0.4509936,110760.0,110750.0,0.17555]
[1760217853163,0.7618,110760.0,110750.0,0.17555]
[1760217853469,0.12447086,110760.0,110750.0,0.93635]
[1760217853773,0.12447086,110760.0,110750.0,0.17555]
[1760217853774,0.10091849,110760.0,110750.0,0.17555]
[1760217853972,0.4519936,110760.0,110750.0,0.17555]
[1760217854473,0.8519936,110760.0,110750.0,0.17555]
[1760217854677,0.88318371,110760.0,110750.0,0.17555]
[1760217854864,0.55390381,110760.0,110750.0,0.17555]
[1760217855067,0.95390381,110760.0,110750.0,0.17555]
[1760217855264,1.47164884,110760.0,110750.0,0.16]
[1760217855668,1.47264884,110760.0,110750.0,0.16]
[1760217855869,1.0548223,110760.0,110750.0,0.17555]
[1760217856276,1.57256733,110760.0,110750.0,0.17555]
[1760217856671,0.0902017,110750.0,110740.0,0.01555]
[1760217856877,0.47454681,110750.0,110740.0,0.17555]
[1760217857179,1.39229184,110750.0,110740.0,0.16]
[1760217857470,1.39229184,110750.0,110740.0,0.17555]
[1760217857872,1.49221033,110750.0,110740.0,0.17555]
[1760217858170,1.00200863,110750.0,110740.0,0.17555]
[1760217858476,0.47554681,110750.0,110740.0,0.17555]
[1760217858775,0.87554681,110750.0,110740.0,0.17555]
[1760217859176,1.39329184,110750.0,110740.0,0.17555]
[1760217859371,0.87554681,110750.0,110740.0,0.17555]
[1760217859773,0.9754653,110750.0,110740.0,0.17555]
[1760217859979,0.87554681,110750.0,110740.0,0.17555]
[1760217860176,1.39329184,110750.0,110740.0,0.17555]
[1760217860877,0.87454681,110750.0,110740.0,0.17555]